{"text_format":"1","workbook":"xlsx","n_sheets":10,"sheets":["General data","XBRL Errors","Index","Show","Hierarchies","T9004HK1","T9004HK2A","T9004HK2B","T9004HK3A","T9004HK3B"],"not_rendered":{"charts":0,"images":3,"macros":1,"external_links":0,"defined_names":35,"comments":0,"pivot_tables":0},"unopened":[],"bounds":{"document_bytes":16777216,"sheet_cells":100000,"rows_first":2000,"rows_last":500,"rows_between":2000,"halvings":0,"cell_chars":16384,"cell_head_chars":4096},"cells_cut":0,"cells_raw":0,"read":"whole","date_system":"1900"}

{"sheet":"General data","index":0,"n_rows":247,"n_cols":23,"rows_kept":247,"cut":false,"hidden":false,"merged":[[0,6,2,6],[3,0,5,9]]}
[null,null,null,null,null,null,null,"Version:",null,"1.1.0.1",null,null,null,null,null,null,"Not applicable/All geographical areas","http://standards.iso.org/iso/17442","Module with all tables","MIR-ALL","01","EUR","NL MIR 1.1.0"]
[null,null,null,null,null,null,null,null,null,null,null,null,null,null,null,null,"AFGHANISTAN","http://standards.iso.org/iso/17442","MFI statistics on interest rates","MIR","17","AED"]
[null,null,null,null,null,null,null," ",null,null,null,null,null,null,null,null,"ALBANIA","http://standards.iso.org/iso/17442",null,null,"18","AFN"]
[null,null,null,null,null,null,null,null,null,null,null,null,null,null,null,null,"ALGERIA","http://standards.iso.org/iso/17442",null,null,"19","ALL"]
[null,null,null,null,null,null,null,null,null,null,null,null,null,null,null,null,"AMERICAN SAMOA","http://standards.iso.org/iso/17442",null,null,"20","AMD"]
[null,null,null,null,null,null,null,null,null,null,null,null,null,null,null,null,"ANDORRA","http://standards.iso.org/iso/17442",null,null,"All","ANG"]
[null,null,null,null,null,null,null,null,null,null,null,null,null,null,null,null,"ANGOLA","http://standards.iso.org/iso/17442",null,null,"All","AOA"]
[null,"General Data",null,null,null,null,null,null,null,null,null,"/General data label{B}","/General data value{E}",null,null,null,"ANGUILLA","http://standards.iso.org/iso/17442",null,null,null,"ARS"]
[null,null,null,null,null,null,null,null,null,null,null,null,null,null,null,null,"ANTARCTICA","http://standards.iso.org/iso/17442",null,null,null,"AUD"]
["*","Identifier",":","LEGALIDENTIFIER20POS",{"$f":"\"\"&D10","v":"LEGALIDENTIFIER20POS"},{"$f":"IF(D10=\"\",1,0)","v":0},null,null,null,null,null,null,null,null,null,null,"ANTIGUA AND BARBUDA","http://standards.iso.org/iso/17442",null,null,null,"AWG"]
[null,null,null,null,null,null,null,null,null,null,null,null,null,null,null,null,"ARGENTINA","http://standards.iso.org/iso/17442",null,null,null,"AZN"]
["*","Period start date",":","2020-01-01",{"$f":"D12","v":"2020-01-01"},{"$f":"IF(D12=\"\",1,0)","v":0},null,null,null,null,null,null,null,null,null,null,"ARMENIA","http://standards.iso.org/iso/17442",null,null,null,"BAM"]
[null,null,null,null,null,null,null,null,null,null,null,null,null,null,null,null,"ARUBA","http://standards.iso.org/iso/17442",null,null,null,"BBD"]
["*","Period end date",":","2020-12-31",{"$f":"D14","v":"2020-12-31"},{"$f":"IF(D14=\"\",1,0)","v":0},null,null,null,null,null,null,null,null,null,null,"AUSTRALIA","http://standards.iso.org/iso/17442",null,null,null,"BDT"]
[null,null,null,null,null,null,null,null,null,null,null,null,null,null,null,null,"AUSTRIA","http://standards.iso.org/iso/17442",null,null,null,"BGN"]
[null,"Country",":","Not applicable/All geographical areas",null,null,null,null,null,null,null,null,null,null,null,null,"AZERBAIJAN","http://standards.iso.org/iso/17442",null,null,null,"BHD"]
[null,null,null,null,null,null,null,null,null,null,null,null,null,null,null,null,"BAHAMAS","http://standards.iso.org/iso/17442",null,null,null,"BIF"]
["*","Filing Currency",":","EUR",{"$f":"\"\"&D18","v":"EUR"},{"$f":"IF(D18=\"\",1,0)","v":0},null,null,null,null,null,null,null,null,null,null,"BAHRAIN","http://standards.iso.org/iso/17442",null,null,null,"BMD"]
[null,null,null,null,null,null,null,null,null,null,null,null,null,null,null,null,"BANGLADESH","http://standards.iso.org/iso/17442",null,null,null,"BND"]
["*","Taxonomy",":","NL MIR 1.1.0",null,{"$f":"IF(D20=\"\",1,0)","v":0},null,null,null,null,null,null,null,null,null,null,"BARBADOS","http://standards.iso.org/iso/17442",null,null,null,"BOB"]
[null,null,null,null,null,null,null,null,null,null,null,null,null,null,null,null,"BELARUS","http://standards.iso.org/iso/17442",null,null,null,"BRL"]
["*","Module",":","Module with all tables",{"$f":"IFERROR(VLOOKUP(D22,S:T,2,FALSE),\"\")","v":"MIR-ALL"},{"$f":"IF(D22=\"\",1,0)","v":0},null,null,null,null,null,null,null,null,null,null,"BELGIUM","http://www.swift.com",null,null,null,"BSD"]
[null,null,null,null,null,null,null,null,null,null,null,null,null,null,null,null,"BELIZE","http://standards.iso.org/iso/17442",null,null,null,"BTN"]
[null,null,null,null,null,null,null,null,null,null,null,null,null,null,null,null,"BENIN","http://standards.iso.org/iso/17442",null,null,null,"BWP"]
[null,"Advanced Requirements",null,null,null,null,null,null,null,null,null,null,null,null,null,null,"BERMUDA","http://standards.iso.org/iso/17442",null,null,null,"BYN"]
[null,null,null,null,null,null,null,null,null,null,null,null,null,null,null,null,"BHUTAN","http://standards.iso.org/iso/17442",null,null,null,"BZD"]
[null,"Identifier scheme",":",{"$f":"IFERROR(VLOOKUP(D16,Q:R,2,FALSE),R1)","v":"http://standards.iso.org/iso/17442"},{"$f":"D27","v":"http://standards.iso.org/iso/17442"},null,null,null,null,null,null,null,null,null,null,null,"BOLIVIA, PLURINATIONAL STATE OF","http://standards.iso.org/iso/17442",null,null,null,"CAD"]
[null,null,null,null,null,null,null,null,null,null,null,null,null,null,null,null,"BRAZIL","http://standards.iso.org/iso/17442",null,null,null,"COP"]
[null,"Monetary decimals",":",null,null,null,null,null,null,null,null,null,null,null,null,null,"BRITISH INDIAN OCEAN TERRITORY","http://standards.iso.org/iso/17442",null,null,null,"CRC"]
[null,null,null,null,null,null,null,null,null,null,null,null,null,null,null,null,"BRUNEI DARUSSALAM","http://standards.iso.org/iso/17442",null,null,null,"CUC"]
[null,"Monetary precision",":",-3,null,{"$f":" 0.5 * 10^(-1 * PP_MonetaryPrecision)","v":500},null,null,null,null,null,null,null,null,null,null,"BULGARIA","http://standards.iso.org/iso/17442",null,null,null,"CUP"]
[null,null,null,null,null,null,null,null,null,null,null,null,null,null,null,null,"BURKINA FASO","http://standards.iso.org/iso/17442",null,null,null,"CVE"]
[null,"Pure decimals",":",4,null,{"$f":" 0.5 * 10^(-1 * PP_DecimalPrecision)","v":5.0000000000000002E-5},null,null,null,null,null,null,null,null,null,null,"BURUNDI","http://standards.iso.org/iso/17442",null,null,null,"CZK"]
[null,null,null,null,null,null,null,null,null,null,null,null,null,null,null,null,"CAMBODIA","http://standards.iso.org/iso/17442",null,null,null,"DJF"]
[null,"Pure precision",":",4,null,null,null,"#XBRL made simple!",null,null,null,null,null,null,null,null,"CAMEROON","http://standards.iso.org/iso/17442",null,null,null,"DKK"]
[null,null,null,null,null,null,null,null,null,null,null,null,null,null,null,null,"CANADA","http://standards.iso.org/iso/17442",null,null,null,"DOP"]
[null,"Concatenate Errors",":",false,null,null,null,null,null,null,null,null,null,null,null,null,"CAPE VERDE","http://standards.iso.org/iso/17442",null,null,null,"DZD"]
[null,"Additional Requirements (Country specific)",null,null,null,null,null,null,null,null,null,null,null,null,null,null,"CAYMAN ISLANDS","http://standards.iso.org/iso/17442",null,null,null,"EGP"]
["BELGIUM",null,null,null,null,null,null,null,null,null,null,null,null,null,null,null,"CENTRAL AFRICAN REPUBLIC","http://standards.iso.org/iso/17442",null,null,null,"ERN"]
["BELGIUM","Post Parsing features",":",null,null,{"$f":"IF(AND(A40=PP_Country,D40=\"\"),1,0)","v":0},null,null,null,null,null,null,null,null,null,null,"CHAD","http://standards.iso.org/iso/17442",null,null,null,"ETB"]
["BELGIUM",null,null,null,null,null,null,null,null,null,null,null,null,null,null,null,"CHILE","http://standards.iso.org/iso/17442",null,null,null,"EUR"]
["BELGIUM","Reporter e-mail",":",null,null,null,null,null,null,null,null,null,null,null,null,null,"CHINA","http://standards.iso.org/iso/17442",null,null,null,"FJD"]
["BELGIUM",null,null,null,null,null,null,null,null,null,null,null,null,null,null,null,"CHRISTMAS ISLAND","http://standards.iso.org/iso/17442",null,null,null,"FKP"]
["BELGIUM","Declarer Type",":",null,{"$f":"\"\"&D44","v":""},{"$f":"IF(AND(A44=PP_Country,D44=\"\"),1,0)","v":0},null,null,null,null,null,null,null,null,null,null,"COCOS (KEELING) ISLANDS","http://standards.iso.org/iso/17442",null,null,null,"GBP"]
["BELGIUM",null,null,null,null,null,null,null,null,null,null,null,null,null,null,null,"COLOMBIA","http://standards.iso.org/iso/17442",null,null,null,"GEL"]
["BELGIUM","Domain",":",null,{"$f":"\"\"&D46","v":""},{"$f":"IF(AND(A46=PP_Country,D46=\"\"),1,0)","v":0},null,null,null,null,null,null,null,null,null,null,"COMOROS","http://standards.iso.org/iso/17442",null,null,null,"GGP"]
["BELGIUM",null,null,null,null,null,null,null,null,null,null,null,null,null,null,null,"CONGO","http://standards.iso.org/iso/17442",null,null,null,"GHS"]
[null,"ParsePort-specific parameters:",null,"SII_",null,null,null,null,null,null,null,null,null,null,null,null,"CONGO, THE DEMOCRATIC REPUBLIC OF THE","http://standards.iso.org/iso/17442",null,null,null,"GIP"]
[null,"Compress contexts",null,true,null,null,null,null,null,null,null,null,null,null,null,null,"COOK ISLANDS","http://standards.iso.org/iso/17442",null,null,null,"GMD"]
[null,"Language",null,"EN",null,null,null,null,null,null,null,null,null,null,null,null,"COSTA RICA","http://standards.iso.org/iso/17442",null,null,null,"GNF"]
[null,"Debug mode",null,false,null,null,null,null,null,null,null,null,null,null,null,null,"CÔTE D'IVOIRE","http://standards.iso.org/iso/17442",null,null,null,"GTQ"]
[null,"LookupValue fallback",null,false,null,null,null,null,null,null,null,null,null,null,null,null,"CROATIA","http://standards.iso.org/iso/17442",null,null,null,"GYD"]
[null,null,null,null,null,null,null,null,null,null,null,"//General data label{B}","//General data value{E}",null,null,null,"CUBA","http://standards.iso.org/iso/17442",null,null,null,"HKD"]
["BELGIUM",null,null,null,null,null,null,null,null,null,null,null,null,null,null,null,"CURAÇAO","http://standards.iso.org/iso/17442",null,null,null,"HNL"]
["BELGIUM",null,null,null,null,null,null,null,null,null,null,null,null,null,null,null,"CYPRUS","http://standards.iso.org/iso/17442",null,null,null,"HRK"]
[null,null,null,null,null,null,null,null,null,null,null,null,null,null,null,null,"CZECH REPUBLIC","http://standards.iso.org/iso/17442",null,null,null,"HTG"]
[null,null,null,null,null,null,null,null,null,null,null,null,null,null,null,null,"DENMARK","http://standards.iso.org/iso/17442",null,null,null,"HUF"]
[null,null,null,null,null,null,null,null,null,null,null,null,null,null,null,null,"DJIBOUTI","http://standards.iso.org/iso/17442",null,null,null,"IDR"]
[null,null,null,null,null,null,null,null,null,null,null,null,null,null,null,null,"DOMINICA","http://standards.iso.org/iso/17442",null,null,null,"ILS"]
[null,null,null,null,null,null,null,null,null,null,null,null,null,null,null,null,"DOMINICAN REPUBLIC","http://standards.iso.org/iso/17442",null,null,null,"IMP"]
[null,null,null,null,null,null,null,null,null,null,null,null,null,null,null,null,"ECUADOR","http://standards.iso.org/iso/17442",null,null,null,"INR"]
[null,null,null,null,null,null,null,null,null,null,null,null,null,null,null,null,"EGYPT","http://standards.iso.org/iso/17442",null,null,null,"IQD"]
[null,null,null,null,null,null,null,null,null,null,null,null,null,null,null,null,"EL SALVADOR","http://standards.iso.org/iso/17442",null,null,null,"IRR"]
[null,null,null,null,null,null,null,null,null,null,null,null,null,null,null,null,"EQUATORIAL GUINEA","http://standards.iso.org/iso/17442",null,null,null,"ISK"]
[null,null,null,null,null,null,null,null,null,null,null,null,null,null,null,null,"ERITREA","http://standards.iso.org/iso/17442",null,null,null,"JEP"]
[null,null,null,null,null,null,null,null,null,null,null,null,null,null,null,null,"ESTONIA","http://standards.iso.org/iso/17442",null,null,null,"JMD"]
[null,null,null,null,null,null,null,null,null,null,null,null,null,null,null,null,"ETHIOPIA","http://standards.iso.org/iso/17442",null,null,null,"JOD"]
[null,null,null,null,null,null,null,null,null,null,null,null,null,null,null,null,"FALKLAND ISLANDS (MALVINAS)","http://standards.iso.org/iso/17442",null,null,null,"JPY"]
[null,null,null,null,null,null,null,null,null,null,null,null,null,null,null,null,"FAROE ISLANDS","http://standards.iso.org/iso/17442",null,null,null,"KES"]
[null,null,null,null,null,null,null,null,null,null,null,null,null,null,null,null,"FIJI","http://standards.iso.org/iso/17442",null,null,null,"KGS"]
[null,null,null,null,null,null,null,null,null,null,null,null,null,null,null,null,"FINLAND","http://standards.iso.org/iso/17442",null,null,null,"KHR"]
[null,null,null,null,null,null,null,null,null,null,null,null,null,null,null,null,"FRANCE","http://standards.iso.org/iso/17442",null,null,null,"KMF"]
[null,null,null,null,null,null,null,null,null,null,null,null,null,null,null,null,"FRENCH GUIANA","http://standards.iso.org/iso/17442",null,null,null,"KPW"]
[null,null,null,null,null,null,null,null,null,null,null,null,null,null,null,null,"FRENCH POLYNESIA","http://standards.iso.org/iso/17442",null,null,null,"KRW"]
[null,null,null,null,null,null,null,null,null,null,null,null,null,null,null,null,"FRENCH SOUTHERN TERRITORIES","http://standards.iso.org/iso/17442",null,null,null,"KWD"]
[null,null,null,null,null,null,null,null,null,null,null,null,null,null,null,null,"GABON","http://standards.iso.org/iso/17442",null,null,null,"KYD"]
[null,null,null,null,null,null,null,null,null,null,null,null,null,null,null,null,"GAMBIA","http://standards.iso.org/iso/17442",null,null,null,"KZT"]
[null,null,null,null,null,null,null,null,null,null,null,null,null,null,null,null,"GEORGIA","http://standards.iso.org/iso/17442",null,null,null,"LAK"]
[null,null,null,null,null,null,null,null,null,null,null,null,null,null,null,null,"GERMANY","http://standards.iso.org/iso/17442",null,null,null,"LBP"]
[null,null,null,null,null,null,null,null,null,null,null,null,null,null,null,null,"GHANA","http://standards.iso.org/iso/17442",null,null,null,"LKR"]
[null,null,null,null,null,null,null,null,null,null,null,null,null,null,null,null,"GIBRALTAR","http://standards.iso.org/iso/17442",null,null,null,"LRD"]
[null,null,null,null,null,null,null,null,null,null,null,null,null,null,null,null,"GREECE","http://standards.iso.org/iso/17442",null,null,null,"LSL"]
[null,null,null,null,null,null,null,null,null,null,null,null,null,null,null,null,"GREENLAND","http://standards.iso.org/iso/17442",null,null,null,"LYD"]
[null,null,null,null,null,null,null,null,null,null,null,null,null,null,null,null,"GRENADA","http://standards.iso.org/iso/17442",null,null,null,"MAD"]
[null,null,null,null,null,null,null,null,null,null,null,null,null,null,null,null,"GUADELOUPE","http://standards.iso.org/iso/17442",null,null,null,"MDL"]
[null,null,null,null,null,null,null,null,null,null,null,null,null,null,null,null,"GUAM","http://standards.iso.org/iso/17442",null,null,null,"MGA"]
[null,null,null,null,null,null,null,null,null,null,null,null,null,null,null,null,"GUATEMALA","http://standards.iso.org/iso/17442",null,null,null,"MKD"]
[null,null,null,null,null,null,null,null,null,null,null,null,null,null,null,null,"GUERNSEY","http://standards.iso.org/iso/17442",null,null,null,"MMK"]
[null,null,null,null,null,null,null,null,null,null,null,null,null,null,null,null,"GUINEA","http://standards.iso.org/iso/17442",null,null,null,"MNT"]
[null,null,null,null,null,null,null,null,null,null,null,null,null,null,null,null,"GUINEA-BISSAU","http://standards.iso.org/iso/17442",null,null,null,"MOP"]
[null,null,null,null,null,null,null,null,null,null,null,null,null,null,null,null,"GUYANA","http://standards.iso.org/iso/17442",null,null,null,"MRO"]
[null,null,null,null,null,null,null,null,null,null,null,null,null,null,null,null,"HAITI","http://standards.iso.org/iso/17442",null,null,null,"MUR"]
[null,null,null,null,null,null,null,null,null,null,null,null,null,null,null,null,"HEARD ISLAND AND MCDONALD ISLANDS","http://standards.iso.org/iso/17442",null,null,null,"MVR"]
[null,null,null,null,null,null,null,null,null,null,null,null,null,null,null,null,"HOLY SEE (VATICAN CITY STATE)","http://standards.iso.org/iso/17442",null,null,null,"MWK"]
[null,null,null,null,null,null,null,null,null,null,null,null,null,null,null,null,"HONDURAS","http://standards.iso.org/iso/17442",null,null,null,"MXN"]
[null,null,null,null,null,null,null,null,null,null,null,null,null,null,null,null,"HONG KONG","http://standards.iso.org/iso/17442",null,null,null,"MYR"]
[null,null,null,null,null,null,null,null,null,null,null,null,null,null,null,null,"HUNGARY","http://standards.iso.org/iso/17442",null,null,null,"MZN"]
[null,null,null,null,null,null,null,null,null,null,null,null,null,null,null,null,"ICELAND","http://standards.iso.org/iso/17442",null,null,null,"NAD"]
[null,null,null,null,null,null,null,null,null,null,null,null,null,null,null,null,"INDIA","http://standards.iso.org/iso/17442",null,null,null,"NGN"]
[null,null,null,null,null,null,null,null,null,null,null,null,null,null,null,null,"INDONESIA","http://standards.iso.org/iso/17442",null,null,null,"NIO"]
[null,null,null,null,null,null,null,null,null,null,null,null,null,null,null,null,"IRAN, ISLAMIC REPUBLIC OF","http://standards.iso.org/iso/17442",null,null,null,"NOK"]
[null,null,null,null,null,null,null,null,null,null,null,null,null,null,null,null,"IRAQ","http://standards.iso.org/iso/17442",null,null,null,"NPR"]
[null,null,null,null,null,null,null,null,null,null,null,null,null,null,null,null,"IRELAND","http://standards.iso.org/iso/17442",null,null,null,"NZD"]
[null,null,null,null,null,null,null,null,null,null,null,null,null,null,null,null,"ISLE OF MAN","http://standards.iso.org/iso/17442",null,null,null,"OMR"]
[null,null,null,null,null,null,null,null,null,null,null,null,null,null,null,null,"ISRAEL","http://standards.iso.org/iso/17442",null,null,null,"PAB"]
[null,null,null,null,null,null,null,null,null,null,null,null,null,null,null,null,"ITALY","http://standards.iso.org/iso/17442",null,null,null,"PEN"]
[null,null,null,null,null,null,null,null,null,null,null,null,null,null,null,null,"JAMAICA","http://standards.iso.org/iso/17442",null,null,null,"PGK"]
[null,null,null,null,null,null,null,null,null,null,null,null,null,null,null,null,"JAPAN","http://standards.iso.org/iso/17442",null,null,null,"PHP"]
[null,null,null,null,null,null,null,null,null,null,null,null,null,null,null,null,"JERSEY","http://standards.iso.org/iso/17442",null,null,null,"PKR"]
[null,null,null,null,null,null,null,null,null,null,null,null,null,null,null,null,"JORDAN","http://standards.iso.org/iso/17442",null,null,null,"PLN"]
[null,null,null,null,null,null,null,null,null,null,null,null,null,null,null,null,"KAZAKHSTAN","http://standards.iso.org/iso/17442",null,null,null,"PYG"]
[null,null,null,null,null,null,null,null,null,null,null,null,null,null,null,null,"KENYA","http://standards.iso.org/iso/17442",null,null,null,"QAR"]
[null,null,null,null,null,null,null,null,null,null,null,null,null,null,null,null,"KIRIBATI","http://standards.iso.org/iso/17442",null,null,null,"RON"]
[null,null,null,null,null,null,null,null,null,null,null,null,null,null,null,null,"KOREA, DEMOCRATIC PEOPLE'S REPUBLIC OF","http://standards.iso.org/iso/17442",null,null,null,"RSD"]
[null,null,null,null,null,null,null,null,null,null,null,null,null,null,null,null,"KOREA, REPUBLIC OF","http://standards.iso.org/iso/17442",null,null,null,"RUB"]
[null,null,null,null,null,null,null,null,null,null,null,null,null,null,null,null,"KUWAIT","http://standards.iso.org/iso/17442",null,null,null,"RWF"]
[null,null,null,null,null,null,null,null,null,null,null,null,null,null,null,null,"KYRGYZSTAN","http://standards.iso.org/iso/17442",null,null,null,"SAR"]
[null,null,null,null,null,null,null,null,null,null,null,null,null,null,null,null,"LAO PEOPLE'S DEMOCRATIC REPUBLIC","http://standards.iso.org/iso/17442",null,null,null,"SBD"]
[null,null,null,null,null,null,null,null,null,null,null,null,null,null,null,null,"LATVIA","http://standards.iso.org/iso/17442",null,null,null,"SCR"]
[null,null,null,null,null,null,null,null,null,null,null,null,null,null,null,null,"LEBANON","http://standards.iso.org/iso/17442",null,null,null,"SDG"]
[null,null,null,null,null,null,null,null,null,null,null,null,null,null,null,null,"LESOTHO","http://standards.iso.org/iso/17442",null,null,null,"SEK"]
[null,null,null,null,null,null,null,null,null,null,null,null,null,null,null,null,"LIBERIA","http://standards.iso.org/iso/17442",null,null,null,"SGD"]
[null,null,null,null,null,null,null,null,null,null,null,null,null,null,null,null,"LIBYA","http://standards.iso.org/iso/17442",null,null,null,"SHP"]
[null,null,null,null,null,null,null,null,null,null,null,null,null,null,null,null,"LIECHTENSTEIN","http://standards.iso.org/iso/17442",null,null,null,"SLL"]
[null,null,null,null,null,null,null,null,null,null,null,null,null,null,null,null,"LITHUANIA","http://standards.iso.org/iso/17442",null,null,null,"SOS"]
[null,null,null,null,null,null,null,null,null,null,null,null,null,null,null,null,"LUXEMBOURG","http://www.cssf.lu",null,null,null,"SPL"]
[null,null,null,null,null,null,null,null,null,null,null,null,null,null,null,null,"MACAO","http://standards.iso.org/iso/17442",null,null,null,"SRD"]
[null,null,null,null,null,null,null,null,null,null,null,null,null,null,null,null,"MACEDONIA, THE FORMER YUGOSLAV REPUBLIC OF","http://standards.iso.org/iso/17442",null,null,null,"STD"]
[null,null,null,null,null,null,null,null,null,null,null,null,null,null,null,null,"MADAGASCAR","http://standards.iso.org/iso/17442",null,null,null,"SVC"]
[null,null,null,null,null,null,null,null,null,null,null,null,null,null,null,null,"MALAWI","http://standards.iso.org/iso/17442",null,null,null,"SYP"]
[null,null,null,null,null,null,null,null,null,null,null,null,null,null,null,null,"MALAYSIA","http://standards.iso.org/iso/17442",null,null,null,"SZL"]
[null,null,null,null,null,null,null,null,null,null,null,null,null,null,null,null,"MALDIVES","http://standards.iso.org/iso/17442",null,null,null,"THB"]
[null,null,null,null,null,null,null,null,null,null,null,null,null,null,null,null,"MALI","http://standards.iso.org/iso/17442",null,null,null,"TJS"]
[null,null,null,null,null,null,null,null,null,null,null,null,null,null,null,null,"MALTA","http://standards.iso.org/iso/17442",null,null,null,"TMT"]
[null,null,null,null,null,null,null,null,null,null,null,null,null,null,null,null,"MARSHALL ISLANDS","http://standards.iso.org/iso/17442",null,null,null,"TND"]
[null,null,null,null,null,null,null,null,null,null,null,null,null,null,null,null,"MARTINIQUE","http://standards.iso.org/iso/17442",null,null,null,"TOP"]
[null,null,null,null,null,null,null,null,null,null,null,null,null,null,null,null,"MAURITANIA","http://standards.iso.org/iso/17442",null,null,null,"TRY"]
[null,null,null,null,null,null,null,null,null,null,null,null,null,null,null,null,"MAURITIUS","http://standards.iso.org/iso/17442",null,null,null,"TTD"]
[null,null,null,null,null,null,null,null,null,null,null,null,null,null,null,null,"MAYOTTE","http://standards.iso.org/iso/17442",null,null,null,"TVD"]
[null,null,null,null,null,null,null,null,null,null,null,null,null,null,null,null,"MEXICO","http://standards.iso.org/iso/17442",null,null,null,"TWD"]
[null,null,null,null,null,null,null,null,null,null,null,null,null,null,null,null,"MICRONESIA, FEDERATED STATES OF","http://standards.iso.org/iso/17442",null,null,null,"TZS"]
[null,null,null,null,null,null,null,null,null,null,null,null,null,null,null,null,"MOLDOVA, REPUBLIC OF","http://standards.iso.org/iso/17442",null,null,null,"UAH"]
[null,null,null,null,null,null,null,null,null,null,null,null,null,null,null,null,"MONACO","http://standards.iso.org/iso/17442",null,null,null,"UGX"]
[null,null,null,null,null,null,null,null,null,null,null,null,null,null,null,null,"MONGOLIA","http://standards.iso.org/iso/17442",null,null,null,"USD"]
[null,null,null,null,null,null,null,null,null,null,null,null,null,null,null,null,"MONTENEGRO","http://standards.iso.org/iso/17442",null,null,null,"UYU"]
[null,null,null,null,null,null,null,null,null,null,null,null,null,null,null,null,"MONTSERRAT","http://standards.iso.org/iso/17442",null,null,null,"UZS"]
[null,null,null,null,null,null,null,null,null,null,null,null,null,null,null,null,"MOROCCO","http://standards.iso.org/iso/17442",null,null,null,"VEF"]
[null,null,null,null,null,null,null,null,null,null,null,null,null,null,null,null,"MOZAMBIQUE","http://standards.iso.org/iso/17442",null,null,null,"VND"]
[null,null,null,null,null,null,null,null,null,null,null,null,null,null,null,null,"MYANMAR","http://standards.iso.org/iso/17442",null,null,null,"VUV"]
[null,null,null,null,null,null,null,null,null,null,null,null,null,null,null,null,"NAMIBIA","http://standards.iso.org/iso/17442",null,null,null,"WST"]
[null,null,null,null,null,null,null,null,null,null,null,null,null,null,null,null,"NAURU","http://standards.iso.org/iso/17442",null,null,null,"XAF"]
[null,null,null,null,null,null,null,null,null,null,null,null,null,null,null,null,"NEPAL","http://standards.iso.org/iso/17442",null,null,null,"XCD"]
[null,null,null,null,null,null,null,null,null,null,null,null,null,null,null,null,"NETHERLANDS","http://standards.iso.org/iso/17442",null,null,null,"XDR"]
[null,null,null,null,null,null,null,null,null,null,null,null,null,null,null,null,"NEW CALEDONIA","http://standards.iso.org/iso/17442",null,null,null,"XOF"]
[null,null,null,null,null,null,null,null,null,null,null,null,null,null,null,null,"NEW ZEALAND","http://standards.iso.org/iso/17442",null,null,null,"XPF"]
[null,null,null,null,null,null,null,null,null,null,null,null,null,null,null,null,"NICARAGUA","http://standards.iso.org/iso/17442",null,null,null,"YER"]
[null,null,null,null,null,null,null,null,null,null,null,null,null,null,null,null,"NIGER","http://standards.iso.org/iso/17442",null,null,null,"ZAR"]
[null,null,null,null,null,null,null,null,null,null,null,null,null,null,null,null,"NIGERIA","http://standards.iso.org/iso/17442",null,null,null,"ZMW"]
[null,null,null,null,null,null,null,null,null,null,null,null,null,null,null,null,"NIUE","http://standards.iso.org/iso/17442",null,null,null,"ZWD"]
[null,null,null,null,null,null,null,null,null,null,null,null,null,null,null,null,"NORFOLK ISLAND","http://standards.iso.org/iso/17442"]
[null,null,null,null,null,null,null,null,null,null,null,null,null,null,null,null,"NORTHERN MARIANA ISLANDS","http://standards.iso.org/iso/17442"]
[null,null,null,null,null,null,null,null,null,null,null,null,null,null,null,null,"NORWAY","SC"]
[null,null,null,null,null,null,null,null,null,null,null,null,null,null,null,null,"OMAN","http://standards.iso.org/iso/17442"]
[null,null,null,null,null,null,null,null,null,null,null,null,null,null,null,null,"PAKISTAN","http://standards.iso.org/iso/17442"]
[null,null,null,null,null,null,null,null,null,null,null,null,null,null,null,null,"PALAU","http://standards.iso.org/iso/17442"]
[null,null,null,null,null,null,null,null,null,null,null,null,null,null,null,null,"PALESTINIAN TERRITORY, OCCUPIED","http://standards.iso.org/iso/17442"]
[null,null,null,null,null,null,null,null,null,null,null,null,null,null,null,null,"PANAMA","http://standards.iso.org/iso/17442"]
[null,null,null,null,null,null,null,null,null,null,null,null,null,null,null,null,"PAPUA NEW GUINEA","http://standards.iso.org/iso/17442"]
[null,null,null,null,null,null,null,null,null,null,null,null,null,null,null,null,"PARAGUAY","http://standards.iso.org/iso/17442"]
[null,null,null,null,null,null,null,null,null,null,null,null,null,null,null,null,"PERU","http://standards.iso.org/iso/17442"]
[null,null,null,null,null,null,null,null,null,null,null,null,null,null,null,null,"PHILIPPINES","http://standards.iso.org/iso/17442"]
[null,null,null,null,null,null,null,null,null,null,null,null,null,null,null,null,"PITCAIRN","http://standards.iso.org/iso/17442"]
[null,null,null,null,null,null,null,null,null,null,null,null,null,null,null,null,"POLAND","http://standards.iso.org/iso/17442"]
[null,null,null,null,null,null,null,null,null,null,null,null,null,null,null,null,"PORTUGAL","http://standards.iso.org/iso/17442"]
[null,null,null,null,null,null,null,null,null,null,null,null,null,null,null,null,"PUERTO RICO","http://standards.iso.org/iso/17442"]
[null,null,null,null,null,null,null,null,null,null,null,null,null,null,null,null,"QATAR","http://standards.iso.org/iso/17442"]
[null,null,null,null,null,null,null,null,null,null,null,null,null,null,null,null,"RÉUNION","http://standards.iso.org/iso/17442"]
[null,null,null,null,null,null,null,null,null,null,null,null,null,null,null,null,"ROMANIA","http://standards.iso.org/iso/17442"]
[null,null,null,null,null,null,null,null,null,null,null,null,null,null,null,null,"RUSSIAN FEDERATION","http://standards.iso.org/iso/17442"]
[null,null,null,null,null,null,null,null,null,null,null,null,null,null,null,null,"RWANDA","http://standards.iso.org/iso/17442"]
[null,null,null,null,null,null,null,null,null,null,null,null,null,null,null,null,"SAINT BARTHÉLEMY","http://standards.iso.org/iso/17442"]
[null,null,null,null,null,null,null,null,null,null,null,null,null,null,null,null,"SAINT HELENA, ASCENSION AND TRISTAN DA CUNHA","http://standards.iso.org/iso/17442"]
[null,null,null,null,null,null,null,null,null,null,null,null,null,null,null,null,"SAINT KITTS AND NEVIS","http://standards.iso.org/iso/17442"]
[null,null,null,null,null,null,null,null,null,null,null,null,null,null,null,null,"SAINT LUCIA","http://standards.iso.org/iso/17442"]
[null,null,null,null,null,null,null,null,null,null,null,null,null,null,null,null,"SAINT MARTIN (FRENCH PART)","http://standards.iso.org/iso/17442"]
[null,null,null,null,null,null,null,null,null,null,null,null,null,null,null,null,"SAINT PIERRE AND MIQUELON","http://standards.iso.org/iso/17442"]
[null,null,null,null,null,null,null,null,null,null,null,null,null,null,null,null,"SAINT VINCENT AND THE GRENADINES","http://standards.iso.org/iso/17442"]
[null,null,null,null,null,null,null,null,null,null,null,null,null,null,null,null,"SAMOA","http://standards.iso.org/iso/17442"]
[null,null,null,null,null,null,null,null,null,null,null,null,null,null,null,null,"SAN MARINO","http://standards.iso.org/iso/17442"]
[null,null,null,null,null,null,null,null,null,null,null,null,null,null,null,null,"SAO TOME AND PRINCIPE","http://standards.iso.org/iso/17442"]
[null,null,null,null,null,null,null,null,null,null,null,null,null,null,null,null,"SAUDI ARABIA","http://standards.iso.org/iso/17442"]
[null,null,null,null,null,null,null,null,null,null,null,null,null,null,null,null,"SENEGAL","http://standards.iso.org/iso/17442"]
[null,null,null,null,null,null,null,null,null,null,null,null,null,null,null,null,"SERBIA","http://standards.iso.org/iso/17442"]
[null,null,null,null,null,null,null,null,null,null,null,null,null,null,null,null,"SEYCHELLES","http://standards.iso.org/iso/17442"]
[null,null,null,null,null,null,null,null,null,null,null,null,null,null,null,null,"SIERRA LEONE","http://standards.iso.org/iso/17442"]
[null,null,null,null,null,null,null,null,null,null,null,null,null,null,null,null,"SINGAPORE","http://standards.iso.org/iso/17442"]
[null,null,null,null,null,null,null,null,null,null,null,null,null,null,null,null,"SINT MAARTEN (DUTCH PART)","http://standards.iso.org/iso/17442"]
[null,null,null,null,null,null,null,null,null,null,null,null,null,null,null,null,"SLOVAKIA","http://standards.iso.org/iso/17442"]
[null,null,null,null,null,null,null,null,null,null,null,null,null,null,null,null,"SLOVENIA","http://standards.iso.org/iso/17442"]
[null,null,null,null,null,null,null,null,null,null,null,null,null,null,null,null,"SOLOMON ISLANDS","http://standards.iso.org/iso/17442"]
[null,null,null,null,null,null,null,null,null,null,null,null,null,null,null,null,"SOMALIA","http://standards.iso.org/iso/17442"]
[null,null,null,null,null,null,null,null,null,null,null,null,null,null,null,null,"SOUTH AFRICA","http://standards.iso.org/iso/17442"]
[null,null,null,null,null,null,null,null,null,null,null,null,null,null,null,null,"SOUTH GEORGIA AND THE SOUTH SANDWICH ISLANDS","http://standards.iso.org/iso/17442"]
[null,null,null,null,null,null,null,null,null,null,null,null,null,null,null,null,"SOUTH SUDAN","http://standards.iso.org/iso/17442"]
[null,null,null,null,null,null,null,null,null,null,null,null,null,null,null,null,"SPAIN","http://standards.iso.org/iso/17442"]
[null,null,null,null,null,null,null,null,null,null,null,null,null,null,null,null,"SRI LANKA","http://standards.iso.org/iso/17442"]
[null,null,null,null,null,null,null,null,null,null,null,null,null,null,null,null,"SUDAN","http://standards.iso.org/iso/17442"]
[null,null,null,null,null,null,null,null,null,null,null,null,null,null,null,null,"SURINAME","http://standards.iso.org/iso/17442"]
[null,null,null,null,null,null,null,null,null,null,null,null,null,null,null,null,"SVALBARD AND JAN MAYEN","http://standards.iso.org/iso/17442"]
[null,null,null,null,null,null,null,null,null,null,null,null,null,null,null,null,"SWAZILAND","http://standards.iso.org/iso/17442"]
[null,null,null,null,null,null,null,null,null,null,null,null,null,null,null,null,"SWEDEN","http://www.fi.se/instnr"]
[null,null,null,null,null,null,null,null,null,null,null,null,null,null,null,null,"SWITZERLAND","http://standards.iso.org/iso/17442"]
[null,null,null,null,null,null,null,null,null,null,null,null,null,null,null,null,"SYRIAN ARAB REPUBLIC","http://standards.iso.org/iso/17442"]
[null,null,null,null,null,null,null,null,null,null,null,null,null,null,null,null,"TAIWAN, PROVINCE OF CHINA","http://standards.iso.org/iso/17442"]
[null,null,null,null,null,null,null,null,null,null,null,null,null,null,null,null,"TAJIKISTAN","http://standards.iso.org/iso/17442"]
[null,null,null,null,null,null,null,null,null,null,null,null,null,null,null,null,"TANZANIA, UNITED REPUBLIC OF","http://standards.iso.org/iso/17442"]
[null,null,null,null,null,null,null,null,null,null,null,null,null,null,null,null,"THAILAND","http://standards.iso.org/iso/17442"]
[null,null,null,null,null,null,null,null,null,null,null,null,null,null,null,null,"TIMOR-LESTE","http://standards.iso.org/iso/17442"]
[null,null,null,null,null,null,null,null,null,null,null,null,null,null,null,null,"TOGO","http://standards.iso.org/iso/17442"]
[null,null,null,null,null,null,null,null,null,null,null,null,null,null,null,null,"TOKELAU","http://standards.iso.org/iso/17442"]
[null,null,null,null,null,null,null,null,null,null,null,null,null,null,null,null,"TONGA","http://standards.iso.org/iso/17442"]
[null,null,null,null,null,null,null,null,null,null,null,null,null,null,null,null,"TRINIDAD AND TOBAGO","http://standards.iso.org/iso/17442"]
[null,null,null,null,null,null,null,null,null,null,null,null,null,null,null,null,"TUNISIA","http://standards.iso.org/iso/17442"]
[null,null,null,null,null,null,null,null,null,null,null,null,null,null,null,null,"TURKEY","http://standards.iso.org/iso/17442"]
[null,null,null,null,null,null,null,null,null,null,null,null,null,null,null,null,"TURKMENISTAN","http://standards.iso.org/iso/17442"]
[null,null,null,null,null,null,null,null,null,null,null,null,null,null,null,null,"TURKS AND CAICOS ISLANDS","http://standards.iso.org/iso/17442"]
[null,null,null,null,null,null,null,null,null,null,null,null,null,null,null,null,"TUVALU","http://standards.iso.org/iso/17442"]
[null,null,null,null,null,null,null,null,null,null,null,null,null,null,null,null,"UGANDA","http://standards.iso.org/iso/17442"]
[null,null,null,null,null,null,null,null,null,null,null,null,null,null,null,null,"UKRAINE","http://standards.iso.org/iso/17442"]
[null,null,null,null,null,null,null,null,null,null,null,null,null,null,null,null,"UNITED ARAB EMIRATES","http://standards.iso.org/iso/17442"]
[null,null,null,null,null,null,null,null,null,null,null,null,null,null,null,null,"UNITED KINGDOM","http://standards.iso.org/iso/17442"]
[null,null,null,null,null,null,null,null,null,null,null,null,null,null,null,null,"UNITED STATES","http://standards.iso.org/iso/17442"]
[null,null,null,null,null,null,null,null,null,null,null,null,null,null,null,null,"UNITED STATES MINOR OUTLYING ISLANDS","http://standards.iso.org/iso/17442"]
[null,null,null,null,null,null,null,null,null,null,null,null,null,null,null,null,"URUGUAY","http://standards.iso.org/iso/17442"]
[null,null,null,null,null,null,null,null,null,null,null,null,null,null,null,null,"UZBEKISTAN","http://standards.iso.org/iso/17442"]
[null,null,null,null,null,null,null,null,null,null,null,null,null,null,null,null,"VANUATU","http://standards.iso.org/iso/17442"]
[null,null,null,null,null,null,null,null,null,null,null,null,null,null,null,null,"VENEZUELA, BOLIVARIAN REPUBLIC OF","http://standards.iso.org/iso/17442"]
[null,null,null,null,null,null,null,null,null,null,null,null,null,null,null,null,"VIET NAM","http://standards.iso.org/iso/17442"]
[null,null,null,null,null,null,null,null,null,null,null,null,null,null,null,null,"VIRGIN ISLANDS, BRITISH","http://standards.iso.org/iso/17442"]
[null,null,null,null,null,null,null,null,null,null,null,null,null,null,null,null,"VIRGIN ISLANDS, U.S.","http://standards.iso.org/iso/17442"]
[null,null,null,null,null,null,null,null,null,null,null,null,null,null,null,null,"WALLIS AND FUTUNA","http://standards.iso.org/iso/17442"]
[null,null,null,null,null,null,null,null,null,null,null,null,null,null,null,null,"WESTERN SAHARA","http://standards.iso.org/iso/17442"]
[null,null,null,null,null,null,null,null,null,null,null,null,null,null,null,null,"YEMEN","http://standards.iso.org/iso/17442"]
[null,null,null,null,null,null,null,null,null,null,null,null,null,null,null,null,"ZAMBIA","http://standards.iso.org/iso/17442"]
[null,null,null,null,null,null,null,null,null,null,null,null,null,null,null,null,"ZIMBABWE","http://standards.iso.org/iso/17442"]
[null,null,null,null,null,null,null,null,null,null,null,null,null,null,null,null,"ÅLAND ISLANDS","http://standards.iso.org/iso/17442"]
[null,null,null,null,null,null,null,null,null,null,null,null,null,null,null,null,"Other Countries","http://standards.iso.org/iso/17442"]

{"sheet":"XBRL Errors","index":1,"n_rows":1,"n_cols":2,"rows_kept":1,"cut":false,"hidden":false,"merged":[]}
["Timestamp","Error"]

{"sheet":"Index","index":2,"n_rows":10,"n_cols":5,"rows_kept":10,"cut":false,"hidden":false,"merged":[[2,1,2,14]]}
[]
[]
[null,"Index"]
[]
[null,"Template Code","Template Name","Reporting Status"]
[null,"T9004HK1","Weighted interest percentages of all outstanding amounts denominated in euros of Dutch MFIs.",null,{"$f":"IF($D$6=\"Reported\",\"@ForceFilingCode:true\",IF($D$6=\"Not Reported\",\"@ForceFilingCode:false\",\"\"))","v":""}]
[null,"T9004HK2A","Weighted interest percentages and volumes on all new business denominated in euros of Dutch MFI's with Non Financial Corporations",null,{"$f":"IF($D$7=\"Reported\",\"@ForceFilingCode:true\",IF($D$7=\"Not Reported\",\"@ForceFilingCode:false\",\"\"))","v":""}]
[null,"T9004HK2B","Weighted interest percentages and volumes on all new business denominated in euros of Dutch MFI's with households",null,{"$f":"IF($D$8=\"Reported\",\"@ForceFilingCode:true\",IF($D$8=\"Not Reported\",\"@ForceFilingCode:false\",\"\"))","v":""}]
[null,"T9004HK3A","Weighted interest percentages and volumes on all new business denominated in euros with collateral/guarantees (coverage >= 100%) with Non Financial Corporations",null,{"$f":"IF($D$9=\"Reported\",\"@ForceFilingCode:true\",IF($D$9=\"Not Reported\",\"@ForceFilingCode:false\",\"\"))","v":""}]
[null,"T9004HK3B","Weighted interest percentages and volumes on all new business denominated in euros with collateral/guarantees (coverage >= 100%) with  Households",null,{"$f":"IF($D$10=\"Reported\",\"@ForceFilingCode:true\",IF($D$10=\"Not Reported\",\"@ForceFilingCode:false\",\"\"))","v":""}]

{"sheet":"Show","index":3,"n_rows":12,"n_cols":4,"rows_kept":12,"cut":false,"hidden":true,"merged":[]}
["Sheet","Prefix","MIR-ALL","MIR"]
["T9004HK1",{"$f":"IF(AND(HLOOKUP('General data'!$E$22,$C$1:$E$2,2,FALSE)=\"X\",Index!D6=\"Reported\"),\"/\",\"!\")","v":"!"},"X","X"]
["T9004HK2A",{"$f":"IF(AND(HLOOKUP('General data'!$E$22,$C$1:$E$3,3,FALSE)=\"X\",Index!D7=\"Reported\"),\"/\",\"!\")","v":"!"},"X","X"]
["T9004HK2B",{"$f":"IF(AND(HLOOKUP('General data'!$E$22,$C$1:$E$4,4,FALSE)=\"X\",Index!D8=\"Reported\"),\"/\",\"!\")","v":"!"},"X","X"]
["T9004HK3A",{"$f":"IF(AND(HLOOKUP('General data'!$E$22,$C$1:$E$5,5,FALSE)=\"X\",Index!D9=\"Reported\"),\"/\",\"!\")","v":"!"},"X","X"]
["T9004HK3B",{"$f":"IF(AND(HLOOKUP('General data'!$E$22,$C$1:$E$6,6,FALSE)=\"X\",Index!D10=\"Reported\"),\"/\",\"!\")","v":"!"},"X","X"]
[]
[{"$f":"IF(Index!D6=\"Not Reported\",\"/T9004HK1 Rows{Z}@ForceFilingCode:false\",\"\")","v":""},{"$f":"IF(Index!D6=\"Not Reported\",\"//T9004HK1 Rows{Z}@ForceFilingCode:false\",\"\")","v":""}]
[{"$f":"IF(Index!D7=\"Not Reported\",\"/T9004HK2A Rows{Z}@ForceFilingCode:false\",\"\")","v":""},{"$f":"IF(Index!D7=\"Not Reported\",\"//T9004HK2A Rows{Z}@ForceFilingCode:false\",\"\")","v":""}]
[{"$f":"IF(Index!D8=\"Not Reported\",\"/T9004HK2B Rows{Z}@ForceFilingCode:false\",\"\")","v":""},{"$f":"IF(Index!D8=\"Not Reported\",\"//T9004HK2B Rows{Z}@ForceFilingCode:false\",\"\")","v":""}]
[{"$f":"IF(Index!D9=\"Not Reported\",\"/T9004HK3A Rows{Z}@ForceFilingCode:false\",\"\")","v":""},{"$f":"IF(Index!D9=\"Not Reported\",\"//T9004HK3A Rows{Z}@ForceFilingCode:false\",\"\")","v":""}]
[{"$f":"IF(Index!D10=\"Not Reported\",\"/T9004HK3B Rows{Z}@ForceFilingCode:false\",\"\")","v":""},{"$f":"IF(Index!D10=\"Not Reported\",\"//T9004HK3B Rows{Z}@ForceFilingCode:false\",\"\")","v":""}]

{"sheet":"Hierarchies","index":4,"n_rows":0,"n_cols":0,"rows_kept":0,"cut":false,"hidden":true,"merged":[]}

{"sheet":"T9004HK1","index":5,"n_rows":54,"n_cols":10,"rows_kept":54,"cut":false,"hidden":true,"merged":[[1,1,1,14],[4,1,4,11],[8,3,9,4],[10,3,10,4],[11,3,13,3],[11,4,13,4]]}
["Back to Index"]
[null,"Table group 9004HK1 : MFI Statistics on interest rates, weighted average interest rates on outstanding amounts of Dutch MFIs"]
[]
[]
[null,"Weighted interest percentages of all outstanding amounts denominated in euros of Dutch MFIs."]
[]
[]
[]
[null,null,null,"x-axis"]
[]
[null,null,null,"Weighted interest rates"]
[null,null,null,"Non-financial corporations","Households"]
[]
[]
[null,null,null,"010","020",null,null,null,{"$f":"Show!$B$2&\"T9004HK1 Rows {\"&COLUMN($C$1)&\"}\"&Index!$E$6","v":"!T9004HK1 Rows {3}"},{"$f":"Show!$B$2&\"T9004HK1 Columns {\"&COLUMN($D$1)&\"}\"","v":"!T9004HK1 Columns {4}"}]
[null,"y-axis",""]
[null,"Assets",""]
[null,"Loans granted and deposits placed with original maturity > 1 years",""]
[null,"- Of which, remaining maturity <= 1 years","010"]
[null,"- Of which, remaining maturity > 1 years",""]
[null,"- with interest rate reset within 12 months","020"]
[null,"- without interest rate reset within 12 months","030"]
[null,"Loans granted and deposits placed with original maturity > 2 years",""]
[null,"- Of which, remaining maturity <= 2 years","040"]
[null,"- Of which, remaining maturity > 2 years",""]
[null,"- with interest rate reset within 24 months","050"]
[null,"- without interest rate reset within 24 months","060"]
[null,"Loans for house purchases",""]
[null,"- maturity <= 1 year","070"]
[null,"- 1 year < maturity <= 5 year","080"]
[null,"- maturity > 5 year","090"]
[null,"Loans for consumption (personal)",""]
[null,"- maturity <= 1 year","100"]
[null,"- 1 year < maturity <= 5 year","110"]
[null,"- maturity > 5 year","120"]
[null,"Revolving loans","130"]
[null,"Overdrafts","140"]
[null,"Credit cards (extended credit)","150"]
[null,"Other loans",""]
[null,"- maturity <= 1 year","160"]
[null,"- 1 year < maturity <= 5 year","170"]
[null,"- maturity > 5 year","180"]
[null,"Liabilities",""]
[null,"Overnight deposits","190"]
[null,"- Of which, deposits with a savings character","191"]
[null,"Deposits  with agreed maturity",""]
[null,"- maturity <= 2 years","200"]
[null,"- maturity > 2 year","210"]
[null,"Deposits redeemable at notice",""]
[null,"- notice <= 3 months","220"]
[null,"- notice > 3 months","230"]
[null,"Repos","240"]
[null,"Long term loans (> 2 years)","250"]
[null,null,null,null,null,null,null,null,{"$f":"Show!$B$2&Show!$B$2&\"T9004HK1 Rows {\"&COLUMN($C$1)&\"}\"","v":"!!T9004HK1 Rows {3}"},{"$f":"Show!$B$2&Show!$B$2&\"T9004HK1 Columns {\"&COLUMN($E$1)&\"}\"","v":"!!T9004HK1 Columns {5}"}]

{"sheet":"T9004HK2A","index":6,"n_rows":63,"n_cols":12,"rows_kept":63,"cut":false,"hidden":true,"merged":[[1,1,1,14],[4,1,4,11],[8,3,9,6],[10,3,10,4],[10,5,10,6],[11,3,12,3],[11,4,12,4],[11,5,12,5],[11,6,12,6]]}
["Back to Index"]
[null,"Table group 9004HK2 : MFI Statistics on interest rates, weighted average interest rates on all new business of Dutch MFIs"]
[]
[]
[null,"Weighted interest percentages and volumes on all new business denominated in euros of Dutch MFI's with Non Financial Corporations"]
[]
[]
[]
[null,null,null,"x-axis"]
[]
[null,null,null,"Interest Rates",null,"Volumes"]
[null,null,null,"Total","of which weighted interest rate on renegotiated new business","Total","of which volume of renegotiated new business"]
[]
[null,null,null,"010","020","030","040",null,null,null,{"$f":"Show!$B$3&\"T9004HK2A Rows {\"&COLUMN($C$1)&\"}\"&Index!$E$7","v":"!T9004HK2A Rows {3}"},{"$f":"Show!$B$3&\"T9004HK2A Columns {\"&COLUMN($D$1)&\"}\"","v":"!T9004HK2A Columns {4}"}]
[null,"y-axis",""]
[null,"Assets",""]
[null,"Other loans <= EUR 0.25 million (with breakdown of interest rate fixation)",""]
[null,"- floating interest and <= 3 months interest fixation","010"]
[null,"- > 3 months - 1 year interest fixation","020"]
[null,"- > 1 year - 3 years interest fixation","030"]
[null,"- > 3 year - 5 years interest fixation","040"]
[null,"- > 5 years and <= 10 years interest fixation","050"]
[null,"- > 10 years interest fixation","060"]
[null,"Other loans <= EUR 0.25 million (with breakdown of maturity and interest rate fixation)",""]
[null,"- maturity <= 1 year","070"]
[null,"- maturity > 1 year","080"]
[null,"- original maturity > 1 year; and floating interest and <=1 year interest fixation","090"]
[null,"- original maturity > 1 year; and > 1 year and <=5 year interest fixation","100"]
[null,"- original maturity > 1 year; and > 5 year interest fixation","110"]
[null,"Other loans in excess of EUR 0.25 to EUR 1 million (with breakdown by interest fixation)",""]
[null,"- floating interest and <= 3 months interest fixation","120"]
[null,"- > 3 months - 1 year interest fixation","130"]
[null,"- > 1 year - 3 years interest fixation","140"]
[null,"- > 3 year - 5 years interest fixation","150"]
[null,"- > 5 years and <= 10 years interest fixation","160"]
[null,"- > 10 years interest fixation","170"]
[null,"Other loans in excess of EUR 0.25 to EUR 1 million (with breakdown by maturity and interest fixation)",""]
[null,"- maturity <= 1 year","180"]
[null,"- maturity > 1 year","190"]
[null,"- original maturity > 1 year; and floating interest and <=1 year interest fixation","200"]
[null,"- original maturity > 1 year; and > 1 year and <=5 year interest fixation","210"]
[null,"- original maturity > 1 year; and > 5 year interest fixation","220"]
[null,"Other loans in excess of EUR 1 million (with breakdown by interest fixation)",""]
[null,"- floating interest and <= 3 months interest fixation","230"]
[null,"- > 3 months - 1 year interest fixation","240"]
[null,"- > 1 year - 3 years interest fixation","250"]
[null,"- > 3 year - 5 years interest fixation","260"]
[null,"- > 5 years and <= 10 years interest fixation","270"]
[null,"- > 10 years interest fixation","280"]
[null,"Other loans in excess of EUR 1 million (with breakdown by maturity and interest fixation)",""]
[null,"- maturity <= 1 year","290"]
[null,"- maturity > 1 year","300"]
[null,"- original maturity > 1 year; and floating interest and <=1 year interest fixation","310"]
[null,"- original maturity > 1 year; and > 1 year and <=5 year interest fixation","320"]
[null,"- original maturity > 1 year; and > 5 year interest fixation","330"]
[null,"Liabilities",""]
[null,"Deposits with agreed maturity",""]
[null,"- maturity <= 1 year","340"]
[null,"- 1 year < maturity <= 2 year","350"]
[null,"- maturity > 2 year","360"]
[null,"Repos","370"]
[null,"Long term loans (> 2 years)","380"]
[null,null,null,null,null,null,null,null,null,null,{"$f":"Show!$B$3&Show!$B$3&\"T9004HK2A Rows {\"&COLUMN($C$1)&\"}\"","v":"!!T9004HK2A Rows {3}"},{"$f":"Show!$B$3&Show!$B$3&\"T9004HK2A Columns {\"&COLUMN($G$1)&\"}\"","v":"!!T9004HK2A Columns {7}"}]

{"sheet":"T9004HK2B","index":7,"n_rows":43,"n_cols":12,"rows_kept":43,"cut":false,"hidden":true,"merged":[[1,1,1,14],[4,1,4,11],[8,3,9,6],[10,3,10,4],[10,5,10,6],[11,3,12,3],[11,4,12,4],[11,5,12,5],[11,6,12,6]]}
["Back to Index"]
[null,"Table group 9004HK2 : MFI Statistics on interest rates, weighted average interest rates on all new business of Dutch MFIs"]
[]
[]
[null,"Weighted interest percentages and volumes on all new business denominated in euros of Dutch MFI's with households"]
[]
[]
[]
[null,null,null,"x-axis"]
[]
[null,null,null,"Interest Rates",null,"Volumes"]
[null,null,null,"Total","of which weighted interest rate on renegotiated new business","Total","of which volume of renegotiated new business"]
[]
[null,null,null,"010","020","030","040",null,null,null,{"$f":"Show!$B$4&\"T9004HK2B Rows {\"&COLUMN($C$1)&\"}\"&Index!$E$8","v":"!T9004HK2B Rows {3}"},{"$f":"Show!$B$4&\"T9004HK2B Columns {\"&COLUMN($D$1)&\"}\"","v":"!T9004HK2B Columns {4}"}]
[null,"y-axis",""]
[null,"Assets",""]
[null,"Loans for house purchases",""]
[null,"- floating interest and <= 1 year interest fixation","010"]
[null,"- > 1 year and <= 5 years interest fixation","020"]
[null,"- > 5 years and <= 10 years interest fixation","030"]
[null,"- > 10 years interest fixation","040"]
[null,"Housing loans under APRC methodology","050"]
[null,"Loans for consumption (personal)",""]
[null,"- floating interest and <= 1 year interest fixation","060"]
[null,"- > 1 year and <= 5 years interest fixation","070"]
[null,"- > 5 years interest fixation","080"]
[null,"Loans for consumption purposes under APRC methodology","090"]
[null,"Other loans",""]
[null,"- floating interest and <= 1 year interest fixation","100"]
[null,"- > 1 year and <= 5 years interest fixation","110"]
[null,"- > 5 years interest fixation","120"]
[null,"Other loans, Of which sole proprietors",""]
[null,"- floating interest and <= 1 year interest fixation","121"]
[null,"- > 1 year and <= 5 years interest fixation","122"]
[null,"- > 5 years interest fixation","123"]
[null,"Liabilities",""]
[null,"Deposits with agreed maturity",""]
[null,"- maturity <= 1 year","130"]
[null,"- 1 year < maturity <= 2 year","140"]
[null,"- maturity > 2 year","150"]
[null,"Repos","160"]
[null,"Long term loans (> 2 years)","170"]
[null,null,null,null,null,null,null,null,null,null,{"$f":"Show!$B$4&Show!$B$4&\"T9004HK2B Rows {\"&COLUMN($C$1)&\"}\"","v":"!!T9004HK2B Rows {3}"},{"$f":"Show!$B$4&Show!$B$4&\"T9004HK2B Columns {\"&COLUMN($G$1)&\"}\"","v":"!!T9004HK2B Columns {7}"}]

{"sheet":"T9004HK3A","index":8,"n_rows":56,"n_cols":10,"rows_kept":56,"cut":false,"hidden":true,"merged":[[1,1,1,14],[4,1,4,11],[8,3,9,4],[10,3,12,3],[10,4,12,4]]}
["Back to Index"]
[null,"Table group 9004HK3 : MFI Statistics on interest rates, weighted interest rates on new business with collateral and/or guarantees (if cover >= 100%) of Dutch MFIs"]
[]
[]
[null,"Weighted interest percentages and volumes on all new business denominated in euros with collateral/guarantees (coverage >= 100%) with Non Financial Corporations"]
[]
[]
[]
[null,null,null,"x-axis"]
[]
[null,null,null,"Weighted interest rates","Volume of new business"]
[]
[]
[null,null,null,"010","020",null,null,null,{"$f":"Show!$B$5&\"T9004HK3A Rows {\"&COLUMN($C$1)&\"}\"&Index!$E$9","v":"!T9004HK3A Rows {3}"},{"$f":"Show!$B$5&\"T9004HK3A Columns {\"&COLUMN($D$1)&\"}\"","v":"!T9004HK3A Columns {4}"}]
[null,"y-axis",""]
[null,"Assets",""]
[null,"Other loans <= EUR 0.25 million (with breakdown of interest rate fixation)",""]
[null,"- floating interest and <= 3 months interest fixation","010"]
[null,"- > 3 months - 1 year interest fixation","020"]
[null,"- > 1 year - 3 years interest fixation","030"]
[null,"- > 3 year - 5 years interest fixation","040"]
[null,"- > 5 years and <= 10 years interest fixation","050"]
[null,"- > 10 years interest fixation","060"]
[null,"Other loans <= EUR 0.25 million (with breakdown of maturity and interest rate fixation)",""]
[null,"- maturity <= 1 year","070"]
[null,"- maturity > 1 year","080"]
[null,"- original maturity > 1 year; and floating interest and <=1 year interest fixation","090"]
[null,"- original maturity > 1 year; and > 1 year and <=5 year interest fixation","100"]
[null,"- original maturity > 1 year; and > 5 year interest fixation","110"]
[null,"Other loans in excess of EUR 0.25 to EUR 1 million (with breakdown by interest fixation)",""]
[null,"- floating interest and <= 3 months interest fixation","120"]
[null,"- > 3 months - 1 year interest fixation","130"]
[null,"- > 1 year - 3 years interest fixation","140"]
[null,"- > 3 year - 5 years interest fixation","150"]
[null,"- > 5 years and <= 10 years interest fixation","160"]
[null,"- > 10 years interest fixation","170"]
[null,"Other loans in excess of EUR 0.25 to EUR 1 million (with breakdown by maturity and interest fixation)",""]
[null,"- maturity <= 1 year","180"]
[null,"- maturity > 1 year","190"]
[null,"- original maturity > 1 year; and floating interest and <=1 year interest fixation","200"]
[null,"- original maturity > 1 year; and > 1 year and <=5 year interest fixation","210"]
[null,"- original maturity > 1 year; and > 5 year interest fixation","220"]
[null,"Other loans in excess of EUR 1 million (with breakdown by interest fixation)",""]
[null,"- floating interest and <= 3 months interest fixation","230"]
[null,"- > 3 months - 1 year interest fixation","240"]
[null,"- > 1 year - 3 years interest fixation","250"]
[null,"- > 3 year - 5 years interest fixation","260"]
[null,"- > 5 years and <= 10 years interest fixation","270"]
[null,"- > 10 years interest fixation","280"]
[null,"Other loans in excess of EUR 1 million (with breakdown by maturity and interest fixation)",""]
[null,"- maturity <= 1 year","290"]
[null,"- maturity > 1 year","300"]
[null,"- original maturity > 1 year; and floating interest and <=1 year interest fixation","310"]
[null,"- original maturity > 1 year; and > 1 year and <=5 year interest fixation","320"]
[null,"- original maturity > 1 year; and > 5 year interest fixation","330"]
[null,null,null,null,null,null,null,null,{"$f":"Show!$B$5&Show!$B$5&\"T9004HK3A Rows {\"&COLUMN($C$1)&\"}\"","v":"!!T9004HK3A Rows {3}"},{"$f":"Show!$B$5&Show!$B$5&\"T9004HK3A Columns {\"&COLUMN($E$1)&\"}\"","v":"!!T9004HK3A Columns {5}"}]

{"sheet":"T9004HK3B","index":9,"n_rows":26,"n_cols":10,"rows_kept":26,"cut":false,"hidden":true,"merged":[[1,1,1,14],[4,1,4,11],[8,3,9,4],[10,3,12,3],[10,4,12,4]]}
["Back to Index"]
[null,"Table group 9004HK3 : MFI Statistics on interest rates, weighted interest rates on new business with collateral and/or guarantees (if cover >= 100%) of Dutch MFIs"]
[]
[]
[null,"Weighted interest percentages and volumes on all new business denominated in euros with collateral/guarantees (coverage >= 100%) with  Households"]
[]
[]
[]
[null,null,null,"x-axis"]
[]
[null,null,null,"Weighted interest rates","Volume of new business"]
[]
[]
[null,null,null,"010","020",null,null,null,{"$f":"Show!$B$6&\"T9004HK3B Rows {\"&COLUMN($C$1)&\"}\"&Index!$E$10","v":"!T9004HK3B Rows {3}"},{"$f":"Show!$B$6&\"T9004HK3B Columns {\"&COLUMN($D$1)&\"}\"","v":"!T9004HK3B Columns {4}"}]
[null,"y-axis",""]
[null,"Assets",""]
[null,"Loans for house purchases",""]
[null,"- floating interest and <= 1 year interest fixation","010"]
[null,"- > 1 year and <= 5 years interest fixation","020"]
[null,"- > 5 years and <= 10 years interest fixation","030"]
[null,"- > 10 years interest fixation","040"]
[null,"Loans for consumption (personal)",""]
[null,"- floating interest and <= 1 year interest fixation","050"]
[null,"- > 1 year and <= 5 years interest fixation","060"]
[null,"- > 5 years interest fixation","070"]
[null,null,null,null,null,null,null,null,{"$f":"Show!$B$6&Show!$B$6&\"T9004HK3B Rows {\"&COLUMN($C$1)&\"}\"","v":"!!T9004HK3B Rows {3}"},{"$f":"Show!$B$6&Show!$B$6&\"T9004HK3B Columns {\"&COLUMN($E$1)&\"}\"","v":"!!T9004HK3B Columns {5}"}]